fUST/lending_fUST_20250320
["ID","MTS","AMOUNT","RATE_DAILY","PERIOD"]
[356445401,1742461850980,-500.0,0.00032876,21]
[356445402,1742461850990,-151.0,0.00032876,7]
[356445403,1742461850999,-500.0,0.00032876,21]
[356445404,1742461851009,-151.0,0.00032876,7]
[356445405,1742461851018,-500.0,0.00032876,21]
[356445406,1742461851027,-500.0,0.00032876,21]
[356445407,1742461851037,-982.83,0.00032876,21]
[356445408,1742461851046,-1203.67,0.00032876,21]
[356445409,1742461851056,-500.0,0.00032876,21]
[356445410,1742461851066,-151.0,0.00032876,7]
[356445411,1742461851076,-151.0,0.00032876,7]
[356445412,1742461851086,-191.651685,0.00032876,7]
[356445413,1742461851095,-512.04,0.00032876,21]
[356445414,1742461851104,-306.90061179,0.00032876,21]
[356445415,1742461851115,-500.0,0.00032876,21]
[356445416,1742461851124,-151.0,0.00032876,7]
[356445417,1742461851133,-500.0,0.00032876,21]
[356445418,1742461851142,-151.0,0.00032876,7]
[356445419,1742461851152,-151.0,0.00032876,7]
[356445420,1742461851161,-500.0,0.00032876,21]
[356445421,1742461851170,-1674.92,0.00032876,21]
[356445422,1742461851181,-500.0,0.00032876,21]
[356445423,1742461851190,-507.85447234,0.00032876,21]
[356445424,1742461851200,-1096.74,0.00032876,21]
[356445425,1742461851209,-500.0,0.00032876,21]
[356445426,1742461851219,-500.0,0.00032876,21]
[356445427,1742461851228,-500.0,0.00032876,21]
[356445428,1742461851238,-500.0,0.00032876,21]
[356445429,1742461851247,-500.0,0.00032876,21]
[356445430,1742461851257,-500.0,0.00032876,21]
[356445431,1742461851267,-916.01,0.00032876,21]
[356445432,1742461851276,-500.0,0.00032876,21]
[356445433,1742461851285,-500.46304743,0.00032876,21]
[356445434,1742461851295,-500.0,0.00032876,21]
[356445435,1742461851306,-500.0,0.00032876,21]
[356445436,1742461851315,-500.0,0.00032876,21]
[356445437,1742461851325,-500.0,0.00032876,21]
[356445438,1742461851334,-428.7793036,0.00032876,21]
[356445439,1742461851344,-500.0,0.00032876,21]
[356445440,1742461851353,-532.39434858,0.00032876,21]
[356445441,1742461851427,-500.0,0.00032876,21]
[356445442,1742461851437,-500.0,0.00032876,21]
[356445443,1742461851446,-500.0,0.00032876,21]
[356445444,1742461851455,-151.0,0.00032876,7]
[356445445,1742461851465,-151.0,0.00032876,7]
[356445446,1742461851474,-151.0,0.00032876,7]
[356445447,1742461851483,-151.0,0.00032876,7]
[356445448,1742461851493,-168.471203,0.00032876,7]
[356445449,1742461851502,-500.0,0.00032876,21]
[356445450,1742461851511,-500.0,0.00032876,21]
[356445451,1742461851521,-500.0,0.00032876,21]
[356445452,1742461851531,-509.9,0.00032876,21]
[356445453,1742461851540,-628.04,0.00032876,21]
[356445454,1742461851550,-500.0,0.00032876,21]
[356445455,1742461851559,-500.0,0.00032876,12]
[356445456,1742461851569,-29745.15,0.00032876,21]
[356445457,1742461851579,-858.18,0.00032876,21]
[356445458,1742461851588,-500.0,0.00032876,21]
[356445459,1742461851597,-500.0,0.00032876,21]
[356445460,1742461851606,-520.10513832,0.00032876,21]
[356445461,1742461851615,-500.0,0.00032876,21]
[356445462,1742461851624,-500.0,0.00032876,21]
[356445463,1742461851634,-895.78,0.00032876,21]
[356445464,1742461851645,-602.02726192,0.00032876,21]
[356445465,1742461851654,-475.42552676,0.00032876,21]
[356445466,1742461851664,-500.0,0.00032876,21]
[356445467,1742461851674,-500.0,0.00032876,21]
[356445468,1742461851683,-20512.22,0.00032876,21]
[356445469,1742461851692,-500.0,0.00032876,21]
[356445470,1742461851702,-713.19,0.00032876,21]
[356445471,1742461851714,-568.8,0.00032876,21]
[356445472,1742461851724,-500.0,0.00032876,21]
[356445473,1742461851734,-1685.96,0.00032876,21]
[356445474,1742461851744,-500.0,0.00032876,21]
[356445475,1742461851755,-1429.05,0.00032876,21]
[356445476,1742461851764,-559.44871579,0.00032876,21]
[356445477,1742461851773,-480.11211967,0.00032876,21]
[356445478,1742461851783,-500.0,0.00032876,21]
[356445479,1742461851794,-500.0,0.00032876,5]
[356445480,1742461851803,-14238.95,0.00032876,21]
[356445481,1742461851813,-1361.5,0.00032876,21]
[356445482,1742461851822,-500.0,0.00032876,21]
[356445483,1742461851831,-616.78,0.00032876,21]
[356445484,1742461851841,-1513.81,0.00032876,21]
[356445485,1742461851851,-500.0,0.00032876,21]
[356445486,1742461851860,-813.05,0.00032876,21]
[356445487,1742461851870,-500.0,0.00032876,21]
[356445488,1742461851880,-500.0,0.00032876,21]
[356445489,1742461851889,-500.0,0.00032876,21]
[356445490,1742461851898,-500.0,0.00032876,20]
[356445491,1742461851907,-500.0,0.00032876,21]
[356445492,1742461851917,-1329.65,0.00032876,21]
[356445493,1742461851926,-4411.74,0.00032876,21]
[356445494,1742461851935,-29088.67,0.00032876,21]
[356445495,1742461851945,-500.0,0.00032876,21]
[356445496,1742461851954,-500.0,0.00032876,21]
[356445497,1742461851964,-3019.51,0.00032876,21]
[356445498,1742461851973,-1213.41,0.00032876,21]
[356445499,1742461851983,-151.0,0.00032876,7]
[356445500,1742461851992,-151.0,0.00032876,7]
[356445501,1742461852001,-151.0,0.00032876,7]
[356445502,1742461852011,-151.0,0.00032876,7]
[356445503,1742461852020,-151.0,0.00032876,7]
[356445504,1742461852030,-2345.85,0.00032876,21]
[356445505,1742461852039,-500.0,0.00032876,21]
[356445506,1742461852048,-2144.99,0.00032876,21]
[356445507,1742461852057,-500.0,0.00032876,21]
[356445508,1742461852066,-162.710232,0.00032876,7]
[356445509,1742461852076,-595.54,0.00032876,21]
[356445510,1742461852086,-500.0,0.00032876,21]
[356445511,1742461852095,-858.07,0.00032876,21]
[356445512,1742461852104,-500.0,0.00032876,21]
[356445513,1742461852114,-151.0,0.00032876,7]
[356445514,1742461852123,-500.0,0.00032876,21]
[356445515,1742461852132,-151.0,0.00032876,7]
[356445516,1742461852142,-1338.74,0.00032876,21]
[356445517,1742461852151,-3639.61,0.00032876,21]
[356445518,1742461852160,-2885.85,0.00032876,21]
[356445519,1742461852170,-151.0,0.00032876,7]
[356445520,1742461852179,-151.0,0.00032876,7]
[356445521,1742461852188,-151.0,0.00032876,7]
[356445522,1742461852198,-1145.34,0.00032876,21]
[356445523,1742461852208,-4768.03,0.00032876,21]
[356445524,1742461852218,-151.0,0.00032876,7]
[356445525,1742461852227,-455.815737,0.00032876,7]
[356445526,1742461852237,-282.879337,0.00032876,7]
[356445527,1742461852247,-455.815737,0.00032876,7]
[356445528,1742461852256,-4146.59,0.00032876,21]
[356445529,1742461852266,-455.815737,0.00032876,7]
[356445530,1742461852276,-4197.92,0.00032876,21]
[356445531,1742461852285,-455.815737,0.00032876,7]
[356445532,1742461852294,-455.815737,0.00032876,7]
[356445533,1742461852303,-500.0,0.00032876,21]
[356445534,1742461852312,-500.0,0.00032876,21]
[356445535,1742461852321,-455.815737,0.00032876,7]
[356445536,1742461852331,-1880.89,0.00032876,21]
[356445537,1742461852340,-455.815737,0.00032876,7]
[356445538,1742461852350,-500.0,0.00032876,21]
[356445539,1742461852359,-455.815737,0.00032876,7]
[356445540,1742461852368,-455.815737,0.00032876,7]
[356445541,1742461852378,-455.815737,0.00032876,7]
[356445542,1742461852387,-500.0,0.00032876,21]
[356445543,1742461852396,-500.0,0.00032876,21]
[356445544,1742461852406,-2431.4,0.00032876,21]
[356445545,1742461852415,-500.0,0.00032876,21]
[356445546,1742461852424,-854.97,0.00032876,21]
[356445547,1742461852433,-500.0,0.00032876,21]
[356445548,1742461852442,-1393.06,0.00032876,21]
[356445549,1742461852452,-500.0,0.00032876,21]
[356445550,1742461852461,-1379.3,0.00032876,21]
[356445551,1742461852470,-2356.21,0.00032876,21]
[356445552,1742461852479,-500.0,0.00032876,21]
[356445553,1742461852489,-500.0,0.00032876,21]
[356445554,1742461852499,-164.198109,0.00032876,7]
[356445555,1742461852508,-500.0,0.00032876,21]
[356445556,1742461852517,-500.0,0.00032876,21]
[356445557,1742461852526,-7598.17,0.00032876,21]
[356445558,1742461852536,-500.0,0.00032876,21]
[356445559,1742461852545,-500.0,0.00032876,21]
[356445560,1742461852555,-1387.86,0.00032876,21]
[356445561,1742461852564,-1387.86,0.00032876,21]
[356445562,1742461852574,-1387.86,0.00032876,21]
[356445563,1742461852584,-1387.86,0.00032876,21]
[356445564,1742461852593,-500.0,0.00032876,21]
[356445565,1742461852602,-500.0,0.00032876,21]
[356445566,1742461852611,-1387.86,0.00032876,21]
[356445567,1742461852620,-1387.86,0.00032876,21]
[356445568,1742461852630,-1387.86,0.00032876,21]
[356445569,1742461852640,-1387.86,0.00032876,21]
[356445570,1742461852649,-261.926605,0.00032876,7]
[356445571,1742461852658,-1387.86,0.00032876,21]
[356445572,1742461852667,-1387.86,0.00032876,21]
[356445573,1742461852677,-500.0,0.00032876,21]
[356445574,1742461852687,-1387.86,0.00032876,21]
[356445575,1742461852695,-721.68,0.00032876,21]
[356445576,1742461852705,-1387.86,0.00032876,21]
[356445577,1742461852720,-1387.86,0.00032876,21]
[356445578,1742461852729,-5457.08,0.00032876,21]
[356445579,1742461852738,-1387.86,0.00032876,21]
[356445580,1742461852748,-1387.86,0.00032876,21]
[356445581,1742461852758,-1387.86,0.00032876,21]
[356445582,1742461852768,-1387.86,0.00032876,21]
[356445583,1742461852777,-1387.86,0.00032876,21]
[356445584,1742461852787,-1387.86,0.00032876,21]
[356445585,1742461852797,-1387.86,0.00032876,21]
[356445586,1742461852807,-2123.07,0.00032876,21]
[356445587,1742461852817,-1387.86,0.00032876,21]
[356445588,1742461852826,-1387.86,0.00032876,21]
[356445589,1742461852836,-1387.86,0.00032876,21]
[356445590,1742461852846,-1387.95,0.00032876,21]
[356445591,1742461852855,-500.0,0.00032876,21]
[356445592,1742461852866,-2230.49,0.00032876,21]
[356445593,1742461852875,-1123.42,0.00032876,21]
[356445594,1742461852885,-500.0,0.00032876,21]
[356445595,1742461852894,-503.27687976,0.00032876,21]
[356445596,1742461852903,-1336.49,0.00032876,21]
[356445597,1742461852913,-500.0,0.00032876,21]
[356445598,1742461852922,-500.0,0.00032876,21]
[356445599,1742461852932,-1332.88,0.00032876,21]
[356445600,1742461852941,-500.0,0.00032876,21]
[356445601,1742461852951,-500.0,0.00032876,21]
[356445602,1742461852960,-601.68826845,0.00032876,21]
[356445603,1742461852970,-500.0,0.00032876,21]
[356445604,1742461852979,-2478.09,0.00032876,21]
[356445605,1742461852988,-17110.58,0.00032876,21]
[356445606,1742461852997,-500.0,0.00032876,21]
[356445607,1742461853006,-500.0,0.00032876,21]
[356445608,1742461853015,-500.0,0.00032876,21]
[356445609,1742461853024,-1435.35,0.00032876,21]
[356445610,1742461853033,-500.0,0.00032876,21]
[356445611,1742461853042,-500.0,0.00032876,21]
[356445612,1742461853052,-544.92,0.00032876,21]
[356445613,1742461853061,-1583.93,0.00032876,21]
[356445614,1742461853070,-500.0,0.00032876,21]
[356445615,1742461853079,-855.62,0.00032876,21]
[356445616,1742461853088,-1655.2,0.00032876,21]
[356445617,1742461853098,-2150.53,0.00032876,21]
[356445618,1742461853107,-620.77289997,0.00032876,21]
[356445619,1742461853117,-4522.64,0.00032876,2]
[356445620,1742461853126,-34655.69,0.00032876,21]
[356445621,1742461853135,-500.0,0.00032876,21]
[356445622,1742461853145,-1805.88,0.00032876,21]
[356445623,1742461853153,-500.0,0.00032876,21]
[356445624,1742461853163,-500.0,0.00032876,21]
[356445625,1742461853172,-500.0,0.00032876,21]
[356445626,1742461853182,-2192.81,0.00032876,21]
[356445627,1742461853192,-500.0,0.00032876,21]
[356445628,1742461853202,-731.26,0.00032876,21]
[356445629,1742461853211,-500.0,0.00032876,21]
[356445630,1742461853221,-500.0,0.00032876,21]
[356445631,1742461853231,-500.0,0.00032876,21]
[356445632,1742461853240,-500.0,0.00032876,21]
[356445633,1742461853250,-500.0,0.00032876,21]
[356445634,1742461853260,-868.49,0.00032876,21]
[356445635,1742461853269,-500.0,0.00032876,21]
[356445636,1742461853278,-1390.84,0.00032876,21]
[356445637,1742461853288,-500.0,0.00032876,21]
[356445638,1742461853297,-500.0,0.00032876,21]
[356445639,1742461853307,-500.0,0.00032876,21]
[356445640,1742461853316,-2716.27,0.00032876,21]
[356445641,1742461853325,-500.0,0.00032876,21]
[356445642,1742461853334,-500.0,0.00032876,21]
[356445643,1742461853344,-500.0,0.00032876,21]
[356445644,1742461853353,-500.0,0.00032876,21]
[356445645,1742461853362,-500.0,0.00032876,21]
[356445646,1742461853371,-191.528548,0.00032876,7]
[356445647,1742461853381,-952.77,0.00032876,21]
[356445648,1742461853390,-191.528548,0.00032876,7]
[356445649,1742461853399,-500.0,0.00032876,21]
[356445650,1742461853409,-500.0,0.00032876,21]
[356445651,1742461853418,-191.528548,0.00032876,7]
[356445652,1742461853427,-191.528548,0.00032876,7]
[356445653,1742461853437,-8455.4,0.00032876,21]
[356445654,1742461853448,-191.528548,0.00032876,7]
[356445655,1742461853458,-658.62,0.00032876,21]
[356445656,1742461853467,-191.528548,0.00032876,7]
[356445657,1742461853477,-648.51,0.00032876,21]
[356445658,1742461853486,-500.0,0.00032876,21]
[356445659,1742461853495,-191.528548,0.00032876,7]
[356445660,1742461853505,-191.528548,0.00032876,7]
[356445661,1742461853515,-191.528548,0.00032876,7]
[356445662,1742461853524,-1588.05,0.00032876,21]
[356445663,1742461853533,-191.528548,0.00032876,7]
[356445664,1742461853542,-500.0,0.00032876,21]
[356445665,1742461853552,-500.0,0.00032876,21]
[356445666,1742461853561,-500.0,0.00032876,21]
[356445667,1742461853571,-660.08,0.00032876,21]
[356445668,1742461853580,-500.0,0.00032876,21]
[356445669,1742461853589,-500.9593533,0.00032876,21]
[356445670,1742461853599,-500.0,0.00032876,21]
[356445671,1742461853609,-500.0,0.00032876,21]
[356445672,1742461853618,-504.00328632,0.00032876,21]
[356445673,1742461853629,-500.0,0.00032876,21]
[356445674,1742461853639,-721.56,0.00032876,21]
[356445675,1742461853648,-500.0,0.00032876,21]
[356445676,1742461853657,-500.0,0.00032876,21]
[356445677,1742461853667,-21878.22,0.00032876,21]
[356445678,1742461853677,-669.02,0.00032876,21]
[356445679,1742461853687,-1593.2,0.00032876,21]
[356445680,1742461853697,-463.63311392,0.00032876,21]
[356445681,1742461853707,-1000.0,0.00032876,7]
[356445682,1742461853720,-500.0,0.00032876,21]
[356445683,1742461853730,-500.0,0.00032876,21]
[356445684,1742461853740,-500.0,0.00032876,21]
[356445685,1742461853749,-500.0,0.00032876,21]
[356445686,1742461853759,-3580.82,0.00032876,21]
[356445687,1742461853768,-500.0,0.00032876,21]
[356445688,1742461853779,-2807.59,0.00032876,21]
[356445689,1742461853790,-500.0,0.00032876,21]
[356445690,1742461853799,-500.0,0.00032876,21]
[356445691,1742461853809,-873.31258,0.00032876,7]
[356445692,1742461853819,-6293.25,0.00032876,21]
[356445693,1742461853830,-500.0,0.00032876,21]
[356445694,1742461853839,-151.0,0.00032876,7]
[356445695,1742461853849,-151.0,0.00032876,7]
[356445696,1742461853858,-873.31258,0.00032876,7]
[356445697,1742461853868,-151.0,0.00032876,7]
[356445698,1742461853878,-873.31258,0.00032876,7]
[356445699,1742461853888,-151.0,0.00032876,7]
[356445700,1742461853897,-873.31258,0.00032876,7]
[356445701,1742461853907,-263.79531374,0.00032876,7]
[356445702,1742461853916,-873.31258,0.00032876,7]
[356445703,1742461853926,-500.65596645,0.00032876,21]
[356445704,1742461853936,-500.0,0.00032876,21]
[356445705,1742461853945,-873.31258,0.00032876,7]
[356445706,1742461853955,-151.0,0.00032876,7]
[356445707,1742461853965,-873.31258,0.00032876,7]
[356445708,1742461853975,-151.0,0.00032876,7]
[356445709,1742461853985,-873.31258,0.00032876,7]
[356445710,1742461853995,-151.0,0.00032876,7]
[356445711,1742461854005,-873.31258,0.00032876,7]
[356445712,1742461854015,-500.0,0.00032876,21]
[356445713,1742461854025,-151.0,0.00032876,7]
[356445714,1742461854034,-500.0,0.00032876,21]
[356445715,1742461854044,-873.31258,0.00032876,7]
[356445716,1742461854054,-151.0,0.00032876,7]
[356445717,1742461854063,-500.0,0.00032876,21]
[356445718,1742461854073,-1364.21,0.00032876,21]
[356445719,1742461854082,-500.0,0.00032876,21]
[356445720,1742461854092,-500.0,0.00032876,21]
[356445721,1742461854102,-151.0,0.00032876,7]
[356445722,1742461854112,-1215.72,0.00032876,21]
[356445723,1742461854122,-151.0,0.00032876,7]
[356445724,1742461854131,-151.0,0.00032876,7]
[356445725,1742461854141,-151.0,0.00032876,7]
[356445726,1742461854151,-505.89,0.00032876,21]
[356445727,1742461854160,-151.0,0.00032876,7]
[356445728,1742461854170,-500.0,0.00032876,21]
[356445729,1742461854179,-647.24,0.00032876,21]
[356445730,1742461854189,-235.622403,0.00032876,7]
[356445731,1742461854199,-235.622403,0.00032876,7]
[356445732,1742461854208,-235.622403,0.00032876,7]
[356445733,1742461854219,-235.622403,0.00032876,7]
[356445734,1742461854229,-235.622403,0.00032876,7]
[356445735,1742461854239,-1502.29,0.00032876,21]
[356445736,1742461854249,-744.02,0.00032876,21]
[356445737,1742461854260,-500.0,0.00032876,21]
[356445738,1742461854269,-500.0,0.00032876,21]
[356445739,1742461854279,-227387.66,0.00032876,7]
[356445740,1742461854289,-589.09,0.00032876,21]
[356445741,1742461854300,-235.622403,0.00032876,7]
[356445742,1742461854309,-500.0,0.00032876,21]
[356445743,1742461854319,-235.622403,0.00032876,7]
[356445744,1742461854329,-235.622403,0.00032876,7]
[356445745,1742461854339,-235.622403,0.00032876,7]
[356445746,1742461854348,-235.622403,0.00032876,7]
[356445747,1742461854358,-511.9305607,0.00032876,21]
[356445748,1742461854367,-2149.83,0.00032876,21]
[356445749,1742461854377,-508.47629536,0.00032876,21]
[356445750,1742461854387,-256.81404613,0.00032876,21]
[356445751,1742461854397,-854.03,0.00032876,21]
[356445752,1742461854407,-500.0,0.00032876,21]
[356445753,1742461854416,-513.16522816,0.00032876,21]
[356445754,1742461854427,-500.0,0.00032876,21]
[356445755,1742461854438,-500.0,0.00032876,21]
[356445756,1742461854448,-3705.55,0.00032876,21]
[356445757,1742461854458,-14308.57,0.00032876,21]
[356445758,1742461854468,-500.0,0.00032876,21]
[356445759,1742461854478,-2447.05,0.00032876,21]
[356445760,1742461854488,-500.0,0.00032876,21]
[356445761,1742461854498,-500.0,0.00032876,21]
[356445762,1742461854507,-500.0,0.00032876,21]
[356445763,1742461854517,-500.0,0.00032876,21]
[356445764,1742461854527,-573.38,0.00032876,21]
[356445765,1742461854536,-500.0,0.00032876,21]
[356445766,1742461854546,-2318.39,0.00032876,21]
[356445767,1742461854556,-516.14860469,0.00032876,21]
[356445768,1742461854566,-500.0,0.00032876,21]
[356445769,1742461854575,-500.0,0.00032876,21]
[356445770,1742461854586,-544.54,0.00032876,21]
[356445771,1742461854595,-500.0,0.00032876,21]
[356445772,1742461854605,-531.2,0.00032876,21]
[356445773,1742461854615,-718.94,0.00032876,21]
[356445774,1742461854625,-5997.31,0.00032876,21]
[356445775,1742461854636,-3595.45,0.00032876,21]
[356445776,1742461854645,-500.0,0.00032876,21]
[356445777,1742461854655,-500.0,0.00032876,21]
[356445778,1742461854665,-500.0,0.00032876,21]
[356445779,1742461854674,-500.0,0.00032876,21]
[356445780,1742461854684,-500.0,0.00032876,21]
[356445781,1742461854694,-500.0,0.00032876,21]
[356445782,1742461854704,-500.0,0.00032876,21]
[356445783,1742461854715,-192.394859,0.00032876,7]
[356445784,1742461854727,-192.394859,0.00032876,7]
[356445785,1742461854737,-192.394859,0.00032876,7]
[356445786,1742461854747,-192.394859,0.00032876,7]
[356445787,1742461854757,-1787.33,0.00032876,21]
[356445788,1742461854767,-500.0,0.00032876,21]
[356445789,1742461854777,-500.0,0.00032876,21]
[356445790,1742461854787,-634.95,0.00032876,21]
[356445791,1742461854799,-3679.44,0.00032876,21]
[356445792,1742461854808,-192.394859,0.00032876,7]
[356445793,1742461854818,-192.394859,0.00032876,7]
[356445794,1742461854828,-500.0,0.00032876,21]
[356445795,1742461854838,-192.394859,0.00032876,7]
[356445796,1742461854848,-192.394859,0.00032876,7]
[356445797,1742461854858,-500.0,0.00032876,21]
[356445798,1742461854867,-500.0,0.00032876,21]
[356445799,1742461854878,-43618.43,0.00032876,21]
[356445800,1742461854889,-660.82,0.00032876,21]
[356445801,1742461854898,-458.16208313,0.00032876,21]
[356445802,1742461854908,-19529.54,0.00032876,21]
[356445803,1742461854918,-500.0,0.00032876,21]
[356445804,1742461854928,-1279.17,0.00032876,21]
[356445805,1742461854938,-891.51,0.00032876,21]
[356445806,1742461854948,-544.25,0.00032876,21]
[356445807,1742461854957,-500.0,0.00032876,21]
[356445808,1742461854967,-500.0,0.00032876,21]
[356445809,1742461854977,-635.21,0.00032876,21]
[356445810,1742461854987,-516.50645836,0.00032876,21]
[356445811,1742461854997,-795.1,0.00032876,21]
[356445812,1742461855007,-500.0,0.00032876,21]
[356445813,1742461855017,-500.0,0.00032876,21]
[356445814,1742461855027,-13088.35,0.00032876,21]
[356445815,1742461855038,-500.0,0.00032876,21]
[356445816,1742461855047,-1007.56,0.00032876,21]
[356445817,1742461855057,-500.0,0.00032876,21]
[356445818,1742461855067,-171.61726,0.00032876,7]
[356445819,1742461855077,-171.61726,0.00032876,7]
[356445820,1742461855087,-171.61726,0.00032876,7]
[356445821,1742461855097,-171.61726,0.00032876,7]
[356445822,1742461855106,-636.24,0.00032876,21]
[356445823,1742461855116,-504.79,0.00032876,21]
[356445824,1742461855126,-500.0,0.00032876,21]
[356445825,1742461855136,-171.61726,0.00032876,7]
[356445826,1742461855145,-171.61726,0.00032876,7]
[356445827,1742461855155,-500.0,0.00032876,21]
[356445828,1742461855165,-171.61726,0.00032876,7]
[356445829,1742461855175,-171.61726,0.00032876,7]
[356445830,1742461855185,-500.0,0.00032876,21]
[356445831,1742461855195,-880.55,0.00032876,21]
[356445832,1742461855205,-1511.65,0.00032876,21]
[356445833,1742461855215,-1511.65,0.00032876,21]
[356445834,1742461855225,-500.0,0.00032876,21]
[356445835,1742461855234,-1511.65,0.00032876,21]
[356445836,1742461855244,-1511.65,0.00032876,21]
[356445837,1742461855254,-1511.65,0.00032876,21]
[356445838,1742461855264,-1511.65,0.00032876,21]
[356445839,1742461855273,-1511.65,0.00032876,21]
[356445840,1742461855283,-1511.65,0.00032876,21]
[356445841,1742461855294,-1511.65,0.00032876,21]
[356445842,1742461855303,-12043.91,0.00032876,21]
[356445843,1742461855313,-1511.65,0.00032876,21]
[356445844,1742461855323,-1511.65,0.00032876,21]
[356445845,1742461855333,-500.0,0.00032876,21]
[356445846,1742461855342,-1511.65,0.00032876,21]
[356445847,1742461855351,-1511.65,0.00032876,21]
[356445848,1742461855361,-1511.65,0.00032876,21]
[356445849,1742461855370,-2711.16,0.00032876,21]
[356445850,1742461855380,-1511.65,0.00032876,21]
[356445851,1742461855390,-1511.65,0.00032876,21]
[356445852,1742461855399,-508.73230383,0.00032876,21]
[356445853,1742461855409,-1511.65,0.00032876,21]
[356445854,1742461855419,-1511.65,0.00032876,21]
[356445855,1742461855429,-500.0,0.00032876,21]
[356445856,1742461855440,-1511.65,0.00032876,21]
[356445857,1742461855450,-1511.65,0.00032876,21]
[356445858,1742461855459,-1511.65,0.00032876,21]
[356445859,1742461855470,-1511.65,0.00032876,21]
[356445860,1742461855480,-1511.65,0.00032876,21]
[356445861,1742461855490,-1511.81057899,0.00032876,21]
[356445862,1742461855499,-1224.78,0.00032876,21]
[356445863,1742461855510,-500.0,0.00032876,21]
[356445864,1742461855519,-10705.08,0.00032876,21]
[356445865,1742461855529,-500.0,0.00032876,21]
[356445866,1742461855539,-151.0,0.00032876,2]
[356445867,1742461855548,-500.0,0.00032876,21]
[356445868,1742461855558,-151.0,0.00032876,2]
[356445869,1742461855568,-151.0,0.00032876,2]
[356445870,1742461855577,-151.0,0.00032876,2]
[356445871,1742461855587,-500.0,0.00032876,21]
[356445872,1742461855597,-500.0,0.00032876,21]
[356445873,1742461855606,-3412.17,0.00032876,21]
[356445874,1742461855616,-500.0,0.00032876,21]
[356445875,1742461855625,-339.9481347,0.00032877,30]
[356445876,1742461855635,-187.121989,0.00032877,30]
[356445877,1742461855645,-187.121989,0.00032877,30]
[356445878,1742461855654,-167.5,0.000329,7]
[356445879,1742461855664,-961.71179581,0.00032933,2]
[356445880,1742461855674,-160.0,0.00032999,10]
[356445881,1742461855683,-195.0,0.00033,21]
[356445882,1742461855693,-193.23763046,0.00033,21]
[356445883,1742461855703,-17957.96376771,0.00033,7]
[356445884,1742461855713,-192.394859,0.00033,14]
[356445885,1742461855726,-192.394859,0.00033,14]
[356445886,1742461855735,-171.61726,0.00033,14]
[356445887,1742461855745,-171.61726,0.00033,14]
[356445888,1742461855755,-151.0,0.00033,2]
[356445889,1742461855766,-160.0,0.00033149,10]
[356445890,1742461855775,-160.0,0.00033149,10]
[356445891,1742461855785,-560.05742091,0.00033149,7]
[356445892,1742461855798,-287.64399232,0.00033149,7]
[356445893,1742461855808,-490.16068625,0.00033149,7]
[356445894,1742461855818,-428.32831321,0.00033149,7]
[356445895,1742461855828,-436.00705654,0.00033149,7]
[356445896,1742461855837,-500.0,0.00033149,7]
[356445897,1742461855847,-500.0,0.00033149,7]
[356445898,1742461855857,-500.0,0.00033149,7]
[356445899,1742461855868,-570.33341043,0.00033149,7]
[356445900,1742461855880,-29775.99738713,0.0003315,20]